Workbook

Sheet Instructions
B3: KSU-Cattle Supplementation Cost
B5: An Excel spreadsheet to evaluate the total costs of various protein supplement programs for cow/calf and stocker producers
L8: Version- 6.29.2016
B28: INTRODUCTION
B29: The beef cattle supplement cost spreadsheet program was developed to assist the user in evaluating up to four supplement programs simultaneously from a total supplement cost basis. Program options can be modified to account for the diversity in cattle management and supplements found throughout the United States.
B31: INSTRUCTIONS FOR THE USER:
B32: Be sure to "Enable Content" and "Enable Macros" for the spreadsheet to function correctly.
B33: In the Supplement and Equipment tabs, blue shaded numbers are inputs and all other numbers are calculated from these inputs. The spreadsheet automatically recalculates every time an additional input is entered. Thus, it is important to wait until all data have been entered and reviewed before interpreting any of the calculated results (i.e., black numbers).
B38: Several of the input cells and calculated values have a red diamond in the upper right hand corner of the cell (if the comments do not appear go to View / Comments on the Excel menu -- you may need to click and then again). By moving your mouse cursor over this diamond, a brief description of the input will be displayed on the screen.
B42: FOR MORE INFORMATION:
B43: With Questions Contact:
B45: Dustin L. Pendell, Ph.D. | G45: Dale Blasi, Ph.D.
B46: Agricultural Economist | G46: Extension Animal Scientist
B47: Department of Agricultural Economics | G47: Department of Animal Science
B48: Kansas State University | G48: Kansas State University
B49: dpendell@k-state.edu | G49: dblasi@k-state.edu
B50: 785-532-3525 | G50: 785-532-5427
B52: ACKNOWLEDGEMENTS:
B53: This spreadsheet was originally developed by Kevin Dhuyvetter, Ph.D., former Agricultural Economist, Kanasas State University, Craig Smith, former Graduate Research Assistant, Kansas State University, and Dale Blasi.
B55: Copyright 2016 AgManager.info, K-State Department of Agricultural Economics

Sheet Supplement
B2: Evaluation of total costs of various protein supplement programs
B4: Section A: Operation characteristics -- INPUTS
B5: Description/name of group | C5: Cows (7X)
B6: Number of head | C6: 100
B7: Feeding duration, days | C7: 90
B8: Roundtrip distance to feed, miles | C8: 5
B9: Labor cost, $/hour | C9: 20
B10: Pickup/truck cost, $/mile | C10: 0.54
B11: Tractor cost, $/hour | C11: 20
B12: Interest rate for analysis, % | C12: 0.05
B14: Section B: Supplement characteristics and delivery options -- INPUTS
B15: Supplement delivery options | C15: Custom mix | D15: Comm. Cubes | E15: Self fed | F15: Forage
B16: Nutrient concentration
B17: Dry matter, % | C17: 0.87 | D17: 0.9 | E17: 0.98 | F17: 0.87
B18: Crude protein (CP), % | C18: 0.2 | D18: 0.38 | E18: 0.4 | F18: 0.13
B19: CP equivalent from NPN, % | C19: 0 | D19: 0 | E19: 0.2 | F19: 0
B20: NPN utilization level, % | C20: 0.15 | D20: 0.15 | E20: 0.15 | F20: 0.15
B21: Total Digestible Nutrient (TDN), % | C21: 0.75 | D21: 0.7 | E21: 0.7 | F21: 0.55
B22: Phosphorus, % | C22: 0.0025 | D22: 0.01 | E22: 0.01 | F22: 0.0025
B23: Supplement cost, $/ton | C23: 175 | D23: 390 | E23: 475 | F23: 105
B24: Adjusted crude protein, % | C24: =IF(C18=0,"",(C18-C19)+IF(C19/C18>=C20,C20*C18,C19)+IF(C19/C18>=C20,(C19-C20*C18)*0.5,0)) -> 0.2 | D24: =IF(D18=0,"",(D18-D19)+IF(D19/D18>=D20,D20*D18,D19)+IF(D19/D18>=D20,(D19-D20*D18)*0.5,0)) -> 0.38 | E24: =IF(E18=0,"",(E18-E19)+IF(E19/E18>=E20,E20*E18,E19)+IF(E19/E18>=E20,(E19-E20*E18)*0.5,0)) -> 0.33 | F24: =IF(F18=0,"",(F18-F19)+IF(F19/F18>=F20,F20*F18,F19)+IF(F19/F18>=F20,(F19-F20*F18)*0.5,0)) -> 0.13
B25: Cost/pound of crude protein (adj), $/lb | C25: =IF(C18=0,"",C23/2000/(C24)) -> 0.4375 | D25: =IF(D18=0,"",D23/2000/(D24)) -> 0.5131578947 | E25: =IF(E18=0,"",E23/2000/(E24)) -> 0.7196969697 | F25: =IF(F18=0,"",F23/2000/(F24)) -> 0.4038461538
B27: Section C: Supplement feeding characteristics -- INPUTS
B28: Supplement delivery options | C28: =C15 -> Custom mix | D28: =D15 -> Comm. Cubes | E28: =E15 -> Self fed | F28: =F15 -> Forage
B29: (AF = As fed, DM = Dry matter)
B30: Supplement provided (AF), lbs/hd/day | C30: 5.86 | D30: 2.98 | E30: 3.11 | F30: 10.4
B31: Estimated wastage, % | C31: 0.02 | D31: 0.02 | E31: 0.02 | F31: 0.15
B32: Feeding frequency, times/week | C32: 7 | D32: 7 | E32: 7 | F32: 7
B33: Required/hd/feeding (AF), lbs | C33: =IF(AND(C$18>0,C30>0),C30*7/C32," N/A") -> 5.86 | D33: =IF(AND(D$18>0,D30>0),D30*7/D32," N/A") -> 2.98 | E33: =IF(AND(E$18>0,E30>0),E30*7/E32," N/A") -> 3.11 | F33: =IF(AND(F$18>0,F30>0),F30*7/F32," N/A") -> 10.4
B34: Total required/feeding (AF), lbs | C34: =IF(AND(C$18>0,C30>0),C30*7/C32*Supplement!$C$6," N/A") -> 586 | D34: =IF(AND(D$18>0,D30>0),D30*7/D32*Supplement!$C$6," N/A") -> 298 | E34: =IF(AND(E$18>0,E30>0),E30*7/E32*Supplement!$C$6," N/A") -> 311 | F34: =IF(AND(F$18>0,F30>0),F30*7/F32*Supplement!$C$6," N/A") -> 1040
B35: CP provided (DM), lbs/hd/day | C35: =IF(AND(C$18,C30>0),C30*C$24*C$17*(1-C31)," N/A") -> 0.9992472 | D35: =IF(AND(D$18,D30>0),D30*D$24*D$17*(1-D31)," N/A") -> 0.9987768 | E35: =IF(AND(E$18,E30>0),E30*E$24*E$17*(1-E31)," N/A") -> 0.98565852 | F35: =IF(AND(F$18,F30>0),F30*F$24*F$17*(1-F31)," N/A") -> 0.999804
B36: Time to supplement, hours/roundtrip | C36: 2 | D36: 1.5 | E36: 1.5 | F36: 2.25
B37: Tractor time, hours/feeding | C37: 0 | D37: 0 | E37: 0 | F37: 0
B38: Select type of equipment used
B41: Table 1: Feeding equipment used by delivery option
C42: =C28 -> Custom mix | D42: =D28 -> Comm. Cubes | E42: =E28 -> Self fed | F42: =F28 -> Forage
B43: =B156 -> Cake box | C43: =C156 -> 1 | D43: =D156 -> 1 | E43: =E156 -> 0 | F43: =F156 -> 0
B44: =B157 -> Feed bunks | C44: =C157 -> 0 | D44: 0 | E44: 1 | F44: 0
B45: Bale feeders | C45: 0 | D45: 0 | E45: 0 | F45: 1
B46: Storage bins | C46: 1 | D46: 1 | E46: 0 | F46: 0
B47: Rented self feeder | C47: 0 | D47: 0 | E47: 0 | F47: 0
B48: N/A | C48: 0 | D48: 0 | E48: 0 | F48: 0
B49: N/A | C49: 0 | D49: 0 | E49: 0 | F49: 0
B50: N/A | C50: 0 | D50: 0 | E50: 0 | F50: 0
B139: DO NOT MODIFY ANYTHING BELOW THIS ROW
B141: Equipment choices: | C141: These are stored as text, table below contains numbers.
C142: Custom mix | D142: =D28 -> Comm. Cubes | E142: =E28 -> Self fed | F142: =F28 -> Forage
B143: =IF(Equipment!B6="","N/A",Equipment!B6) -> Cake box | C143: 1 | D143: 1 | E143: 0 | F143: 0
B144: =IF(Equipment!B7="","N/A",Equipment!B7) -> Feed bunks | C144: 0 | D144: 0 | E144: 1 | F144: 0
B145: =IF(Equipment!B8="","N/A",Equipment!B8) -> Bale feeders | C145: 0 | D145: 0 | E145: 0 | F145: 1
B146: =IF(Equipment!B9="","N/A",Equipment!B9) -> Storage bins | C146: 1 | D146: 1 | E146: 0 | F146: 0
B147: =IF(Equipment!B10="","N/A",Equipment!B10) -> Rented self feeder | C147: 0 | D147: 0 | E147: 0 | F147: 0
B148: =IF(Equipment!B11="","N/A",Equipment!B11) -> N/A | C148: 0 | D148: 0 | E148: 0 | F148: 0
B149: =IF(Equipment!B12="","N/A",Equipment!B12) -> N/A | C149: 0 | D149: 0 | E149: 0 | F149: 0
B150: =IF(Equipment!B13="","N/A",Equipment!B13) -> N/A | C150: 0 | D150: 0 | E150: 0 | F150: 0
B152: Select all types of equipment that apply: If a specific type of equipment is not listed it can be entered in the "Equipment" sheet.
C155: =C142 -> Custom mix | D155: =D142 -> Comm. Cubes | E155: =E142 -> Self fed | F155: =F142 -> Forage
B156: =B143 -> Cake box | C156: =IF(C143="",0,C143+0) -> 1 | D156: 1 | E156: 0 | F156: 0
B157: Feed bunks | C157: 0 | D157: 0 | E157: 1 | F157: 0
B158: Bale feeders | C158: 0 | D158: 0 | E158: 0 | F158: 1
B159: Storage bins | C159: 1 | D159: 1 | E159: 0 | F159: 0
B160: Rented self feeder | C160: 0 | D160: 0 | E160: 0 | F160: 0
B161: N/A | C161: 0 | D161: 0 | E161: 0 | F161: 0
B162: N/A | C162: 0 | D162: 0 | E162: 0 | F162: 0
B163: N/A | C163: 0 | D163: 0 | E163: 0 | F163: 0

Sheet Equipment
B2: Section D: Cost of equipment used for feeding supplement -- INPUTS
C3: Market value | D3: Salvage value | E3: Useful life | F3: Repairs or rent | G3: Allocate to supp. | H3: Annual cost | I3: Annual cost/head
B5: Type | C5: ($) | D5: ($) | E5: (yrs) | F5: ($) | G5: (%) | H5: ($) | I5: ($)
B6: Cake box | C6: 3000 | D6: 0 | E6: 10 | F6: 150 | G6: 1 | H6: =IF(SUM(C6:F6)>0,(IF(E6=0,0,(C6-D6)/E6)+(C6+D6)/2*D$14+F6)*G6,"") -> 525 | I6: =IF(H6="","",H6/Supplement!$C$6) -> 5.25
B7: Feed bunks | C7: 3500 | D7: 500 | E7: 10 | F7: 250 | G7: 0.5 | H7: =IF(SUM(C7:F7)>0,(IF(E7=0,0,(C7-D7)/E7)+(C7+D7)/2*D$14+F7)*G7,"") -> 325 | I7: =IF(H7="","",H7/Supplement!$C$6) -> 3.25
B8: Bale feeders | C8: 5000 | D8: 0 | E8: 10 | F8: 300 | G8: 1 | H8: 925 | I8: =IF(H8="","",H8/Supplement!$C$6) -> 9.25
B9: Storage bins | C9: 5000 | D9: 0 | E9: 20 | F9: 0 | G9: 0.5 | H9: 187.5 | I9: =IF(H9="","",H9/Supplement!$C$6) -> 1.875
B10: Rented self feeder | C10: 0 | D10: 0 | E10: 0 | F10: 400 | G10: 1 | H10: 400 | I10: =IF(H10="","",H10/Supplement!$C$6) -> 4
I11: =IF(H11="","",H11/Supplement!$C$6) -> 
I12: =IF(H12="","",H12/Supplement!$C$6) -> 
I13: =IF(H13="","",H13/Supplement!$C$6) -> 
B14: Interest rate | D14: =Supplement!C12 -> 0.05
B16: Section E: Estimated costs for vehicles used in delivering supplement -- (optional) INPUTS
D17: Pickup | E17: Truck | F17: Tractor | G17: Other
B18: Market value | D18: 40000 | E18: 15000 | F18: 80000 | G18: 0
B19: Salvage value | D19: 20000 | E19: 5000 | F19: 20000 | G19: 0
B21: Useful life, years | D21: 5 | E21: 10 | F21: 10 | G21: 0
B22: Annual use, miles or hours | D22: 20000 | E22: 5000 | F22: 700 | G22: 0
B24: Taxes, insurance, & license, $ | D24: 600 | E24: 500 | F24: 100 | G24: 0
B25: Fuel and oil, $/mile or $/hour | D25: 0.25 | E25: 0.375 | F25: 35 | G25: 0
B26: Annual repairs, $ | D26: 200 | E26: 400 | F26: 1000 | G26: 0
D27: =SUM(D18:D26) -> 80805.25 | E27: =SUM(E18:E26) -> 25910.375 | F27: =SUM(F18:F26) -> 101845 | G27: =SUM(G18:G26) -> 0
B28: Total cost per mile (or hour) | D28: =IF(D27>0,((D18-D19)/D21+(D18+D19)/2*$D14+D24+D26)/D22+D25,"N/A") -> 0.565 | E28: =IF(E27>0,((E18-E19)/E21+(E18+E19)/2*$D14+E24+E26)/E22+E25,"N/A") -> 0.855 | F28: =IF(F27>0,((F18-F19)/F21+(F18+F19)/2*$D14+F24+F26)/F22+F25,"N/A") -> 48.71428571 | G28: =IF(G27>0,((G18-G19)/G21+(G18+G19)/2*$D14+G24+G26)/G22+G25,"N/A") -> N/A

Sheet Results
B2: Section F: Supplement feeding costs per head -- RESULTS
B3: Supplement delivery options | C3: =Supplement!C15 -> Custom mix | D3: =Supplement!D15 -> Comm. Cubes | E3: =Supplement!E15 -> Self fed | F3: =Supplement!F15 -> Forage
B4: Supplement cost | C4: =IF(AND(AND(Supplement!C$18>0,Supplement!C30),Supplement!C6>0),Supplement!C30*Supplement!C$23/2000*Supplement!$C$7,"") -> 46.1475 | D4: =IF(AND(AND(Supplement!D$18>0,Supplement!D30),Supplement!C6>0),Supplement!D30*Supplement!D$23/2000*Supplement!$C$7,"") -> 52.299 | E4: =IF(AND(AND(Supplement!E$18>0,Supplement!E30),Supplement!C6>0),Supplement!E30*Supplement!E$23/2000*Supplement!$C$7,"") -> 66.47625 | F4: =IF(AND(AND(Supplement!F$18>0,Supplement!F30),Supplement!C6>0),Supplement!F30*Supplement!F$23/2000*Supplement!$C$7,"") -> 49.14
B5: Non supplement cost | C5: =IF(AND(AND(Supplement!C$18>0,Supplement!C30),Supplement!$C$6>0),SUM(C6:C9),"") -> 45.555 | D5: =IF(AND(AND(Supplement!D$18>0,Supplement!D30),Supplement!$C$6>0),SUM(D6:D9),"") -> 36.555 | E5: =IF(AND(AND(Supplement!E$18>0,Supplement!E30),Supplement!$C$6>0),SUM(E6:E9),"") -> 32.68 | F5: =IF(AND(AND(Supplement!F$18>0,Supplement!F30),Supplement!$C$6>0),SUM(F6:F9),"") -> 52.18
B6: Equipment cost | C6: =SUMPRODUCT(Supplement!C156:C163,Equipment!$I$6:$I$13) -> 7.125 | D6: =SUMPRODUCT(Supplement!D156:D163,Equipment!$I$6:$I$13) -> 7.125 | E6: =SUMPRODUCT(Supplement!E156:E163,Equipment!$I$6:$I$13) -> 3.25 | F6: =SUMPRODUCT(Supplement!F156:F163,Equipment!$I$6:$I$13) -> 9.25
B7: Labor cost | C7: =IF(AND(AND(Supplement!C$18>0,Supplement!C30),Supplement!$C$6>0),Supplement!C36*Supplement!C32*Supplement!$C$7/7*Supplement!$C$9/Supplement!$C$6,"") -> 36 | D7: =IF(AND(AND(Supplement!D$18>0,Supplement!D30),Supplement!$C$6>0),Supplement!D36*Supplement!D32*Supplement!$C$7/7*Supplement!$C$9/Supplement!$C$6,"") -> 27 | E7: =IF(AND(AND(Supplement!E$18>0,Supplement!E30),Supplement!$C$6>0),Supplement!E36*Supplement!E32*Supplement!$C$7/7*Supplement!$C$9/Supplement!$C$6,"") -> 27 | F7: =IF(AND(AND(Supplement!F$18>0,Supplement!F30),Supplement!$C$6>0),Supplement!F36*Supplement!F32*Supplement!$C$7/7*Supplement!$C$9/Supplement!$C$6,"") -> 40.5
B8: Pickup/truck cost | C8: =IF(AND(AND(Supplement!C$18>0,Supplement!C30),Supplement!$C$6>0),Supplement!$C$8*Supplement!C32*Supplement!$C$7/7*Supplement!$C$10/Supplement!$C$6,"") -> 2.43 | D8: =IF(AND(AND(Supplement!D$18>0,Supplement!D30),Supplement!$C$6>0),Supplement!$C$8*Supplement!D32*Supplement!$C$7/7*Supplement!$C$10/Supplement!$C$6,"") -> 2.43 | E8: =IF(AND(AND(Supplement!E$18>0,Supplement!E30),Supplement!$C$6>0),Supplement!$C$8*Supplement!E32*Supplement!$C$7/7*Supplement!$C$10/Supplement!$C$6,"") -> 2.43 | F8: =IF(AND(AND(Supplement!F$18>0,Supplement!F30),Supplement!$C$6>0),Supplement!$C$8*Supplement!F32*Supplement!$C$7/7*Supplement!$C$10/Supplement!$C$6,"") -> 2.43
B9: Tractor cost | C9: =IF(AND(AND(Supplement!C$18>0,Supplement!C30),Supplement!$C$6>0),Supplement!C37*Supplement!C32*Supplement!$C$7/7*Supplement!$C$11/Supplement!$C$6,"") -> 0 | D9: =IF(AND(AND(Supplement!D$18>0,Supplement!D30),Supplement!$C$6>0),Supplement!D37*Supplement!D32*Supplement!$C$7/7*Supplement!$C$11/Supplement!$C$6,"") -> 0 | E9: =IF(AND(AND(Supplement!E$18>0,Supplement!E30),Supplement!$C$6>0),Supplement!E37*Supplement!E32*Supplement!$C$7/7*Supplement!$C$11/Supplement!$C$6,"") -> 0 | F9: =IF(AND(AND(Supplement!F$18>0,Supplement!F30),Supplement!$C$6>0),Supplement!F37*Supplement!F32*Supplement!$C$7/7*Supplement!$C$11/Supplement!$C$6,"") -> 0
B10: TOTAL COST/HEAD/DAY | C10: =IF(AND(AND(Supplement!C$18>0,Supplement!C30),Supplement!$C$6>0),(C4+C5)/Supplement!$C$7,"") -> 1.018916667 | D10: =IF(AND(AND(Supplement!D$18>0,Supplement!D30),Supplement!$C$6>0),(D4+D5)/Supplement!$C$7,"") -> 0.9872666667 | E10: =IF(AND(AND(Supplement!E$18>0,Supplement!E30),Supplement!$C$6>0),(E4+E5)/Supplement!$C$7,"") -> 1.101736111 | F10: =IF(AND(AND(Supplement!F$18>0,Supplement!F30),Supplement!$C$6>0),(F4+F5)/Supplement!$C$7,"") -> 1.125777778
B11: TOTAL COST/HEAD/PERIOD | C11: =IF(AND(AND(Supplement!C$18>0,Supplement!C30),Supplement!$C$6>0),C4+C5,"") -> 91.7025 | D11: =IF(AND(AND(Supplement!D$18>0,Supplement!D30),Supplement!$C$6>0),D4+D5,"") -> 88.854 | E11: =IF(AND(AND(Supplement!E$18>0,Supplement!E30),Supplement!$C$6>0),E4+E5,"") -> 99.15625 | F11: =IF(AND(AND(Supplement!F$18>0,Supplement!F30),Supplement!$C$6>0),F4+F5,"") -> 101.32
B12: TOTAL COST PER GROUP/PERIOD | C12: =IF(C11>0,C11*Supplement!$C$6,"") -> 9170.25 | D12: =IF(D11>0,D11*Supplement!$C$6,"") -> 8885.4 | E12: =IF(E11>0,E11*Supplement!$C$6,"") -> 9915.625 | F12: =IF(F11>0,F11*Supplement!$C$6,"") -> 10132
B13: Supplement cost as % of total | C13: =IF(AND(AND(Supplement!C$18>0,Supplement!C30),Supplement!$C$6>0),C4/C11,"") -> 0.5032305553 | D13: =IF(AND(AND(Supplement!D$18>0,Supplement!D30),Supplement!$C$6>0),D4/D11,"") -> 0.5885947734 | E13: =IF(AND(AND(Supplement!E$18>0,Supplement!E30),Supplement!$C$6>0),E4/E11,"") -> 0.6704191617 | F13: =IF(AND(AND(Supplement!F$18>0,Supplement!F30),Supplement!$C$6>0),F4/F11,"") -> 0.4849980261
B15: Section G: Other nutrients supplied (on a dry matter basis) -- RESULTS
B16: Supplement delivery options | C16: =Supplement!C15 -> Custom mix | D16: =Supplement!D15 -> Comm. Cubes | E16: =Supplement!E15 -> Self fed | F16: =Supplement!F15 -> Forage
B17: Crude protein supplied/hd/day, lbs | C17: =IF(AND(AND(Supplement!C$18>0,Supplement!C30),Supplement!$C$6>0),Supplement!C35," N/A") -> 0.9992472 | D17: =IF(AND(AND(Supplement!D$18>0,Supplement!D30),Supplement!$C$6>0),Supplement!D35," N/A") -> 0.9987768 | E17: =IF(AND(AND(Supplement!E$18>0,Supplement!E30),Supplement!$C$6>0),Supplement!E35," N/A") -> 0.98565852 | F17: =IF(AND(AND(Supplement!F$18>0,Supplement!F30),Supplement!$C$6>0),Supplement!F35," N/A") -> 0.999804
B18: TDN supplied/hd/days, lbs | C18: =IF(AND(AND(Supplement!C$18>0,Supplement!C30),Supplement!$C$6>0),(Supplement!C30*(1-Supplement!C31))*Supplement!C$17*Supplement!C$21," N/A") -> 3.747177 | D18: =IF(AND(AND(Supplement!D$18>0,Supplement!D30),Supplement!$C$6>0),(Supplement!D30*(1-Supplement!D31))*Supplement!D$17*Supplement!D$21," N/A") -> 1.839852 | E18: =IF(AND(AND(Supplement!E$18>0,Supplement!E30),Supplement!$C$6>0),(Supplement!E30*(1-Supplement!E31))*Supplement!E$17*Supplement!E$21," N/A") -> 2.0907908 | F18: =IF(AND(AND(Supplement!F$18>0,Supplement!F30),Supplement!$C$6>0),(Supplement!F30*(1-Supplement!F31))*Supplement!F$17*Supplement!F$21," N/A") -> 4.22994
B19: Phosphorus supplied/hd/day, grams | C19: =IF(AND(AND(Supplement!C$18>0,Supplement!C30),Supplement!$C$6>0),(Supplement!C30*(1-Supplement!C31))*Supplement!C17*Supplement!C$22*453.6," N/A") -> 5.665731624 | D19: =IF(AND(AND(Supplement!D$18>0,Supplement!D30),Supplement!$C$6>0),(Supplement!D30*(1-Supplement!D31))*Supplement!D17*Supplement!D$22*453.6," N/A") -> 11.92224096 | E19: =IF(AND(AND(Supplement!E$18>0,Supplement!E30),Supplement!$C$6>0),(Supplement!E30*(1-Supplement!E31))*Supplement!E17*Supplement!E$22*453.6," N/A") -> 13.54832438 | F19: =IF(AND(AND(Supplement!F$18>0,Supplement!F30),Supplement!$C$6>0),(Supplement!F30*(1-Supplement!F31))*Supplement!F17*Supplement!F$22*453.6," N/A") -> 8.7213672
